fUST/lending_fUST_20250619
["ID","MTS","AMOUNT","RATE_DAILY","PERIOD"]
[366465759,1750270239913,-500.0,0.00022207,2]
[366465760,1750270239922,-207.4,0.00022207,2]
[366465761,1750270239932,-500.0,0.00022207,2]
[366465762,1750270239942,-500.0,0.00022207,2]
[366465763,1750270239952,-500.0,0.00022207,2]
[366465764,1750270239961,-500.0,0.00022207,2]
[366465765,1750270239971,-500.0,0.00022207,2]
[366465766,1750270239981,-500.0,0.00022207,2]
[366465767,1750270239991,-500.0,0.00022207,2]
[366465768,1750270240001,-500.0,0.00022207,2]
[366465769,1750270240010,-500.0,0.00022207,2]
[366465770,1750270240020,-500.0,0.00022207,2]
[366465771,1750270240030,-500.0,0.00022207,2]
[366465772,1750270240041,-500.0,0.00022207,2]
[366465773,1750270240051,-500.0,0.00022207,2]
[366465774,1750270240060,-213.43818883,0.00022234,2]
[366465775,1750270240070,-175.92123975,0.00022262,2]
[366465776,1750270240080,-318.76143574,0.00022284,2]
[366465777,1750270240089,-793.49073526,0.00022314,7]
[366465778,1750270240099,-421.58463103,0.00022345,2]
[366465779,1750270240108,-793.49073526,0.00022452,7]
[366465780,1750270240118,-460.0,0.00022465,6]
[366465781,1750270240127,-460.0,0.00022465,6]
[366465782,1750270240137,-460.0,0.00022465,6]
[366465783,1750270240147,-460.0,0.00022465,6]
[366465784,1750270240157,-460.0,0.00022465,6]
[366465785,1750270240166,-460.0,0.00022465,6]
[366465786,1750270240175,-460.0,0.00022465,6]
[366465787,1750270240185,-460.0,0.00022465,6]
[366465788,1750270240194,-512.41,0.00022465,6]
[366465789,1750270240204,-460.0,0.00022465,6]
[366465790,1750270240214,-2274.31,0.00022465,6]
[366465791,1750270240223,-460.0,0.00022465,6]
[366465792,1750270240232,-158.4,0.00022465,6]
[366465793,1750270240241,-1184.57,0.00022465,6]
[366465794,1750270240251,-611.66,0.00022465,6]
[366465795,1750270240260,-460.0,0.00022465,6]
[366465796,1750270240269,-460.0,0.00022465,6]
[366465797,1750270240279,-460.0,0.00022465,6]
[366465798,1750270240288,-460.7,0.00022465,6]
[366465799,1750270240297,-460.0,0.00022465,6]
[366465800,1750270240307,-460.0,0.00022465,6]
[366465801,1750270240316,-1792.84,0.00022465,6]
[366465802,1750270240326,-2050.35,0.00022465,6]
[366465803,1750270240335,-1838.32,0.00022465,6]
[366465804,1750270240345,-795.5,0.00022465,6]
[366465805,1750270240354,-646.05,0.00022465,6]
[366465806,1750270240363,-460.0,0.00022465,6]
[366465807,1750270240373,-460.0,0.00022465,6]
[366465808,1750270240384,-540.41,0.00022465,6]
[366465809,1750270240393,-460.0,0.00022465,6]
[366465810,1750270240402,-460.0,0.00022465,6]
[366465811,1750270240411,-769.89,0.00022465,6]
[366465812,1750270240421,-460.0,0.00022465,6]
[366465813,1750270240431,-460.0,0.00022465,6]
[366465814,1750270240440,-460.0,0.00022465,6]
[366465815,1750270240449,-375.30821571,0.00022465,6]
[366465816,1750270240458,-460.0,0.00022465,6]
[366465817,1750270240467,-460.0,0.00022465,6]
[366465818,1750270240476,-1370.48,0.00022465,6]
[366465819,1750270240485,-531.3,0.00022465,6]
[366465820,1750270240495,-672.08,0.00022465,6]
[366465821,1750270240504,-460.0,0.00022465,6]
[366465822,1750270240513,-460.0,0.00022465,6]
[366465823,1750270240522,-460.0,0.00022465,6]
[366465824,1750270240532,-776.8,0.00022465,6]
[366465825,1750270240542,-460.0,0.00022465,6]
[366465826,1750270240553,-460.0,0.00022465,6]
[366465827,1750270240564,-460.0,0.00022465,6]
[366465828,1750270240574,-460.0,0.00022465,6]
[366465829,1750270240584,-460.0,0.00022465,6]
[366465830,1750270240593,-460.0,0.00022465,6]
[366465831,1750270240603,-3729.53,0.00022465,6]
[366465832,1750270240613,-524.17,0.00022465,6]
[366465833,1750270240621,-931.05,0.00022465,6]
[366465834,1750270240630,-1418.76,0.00022465,6]
[366465835,1750270240642,-460.0,0.00022465,6]
[366465836,1750270240651,-2047.77,0.00022465,6]
[366465837,1750270240660,-460.0,0.00022465,6]
[366465838,1750270240669,-460.0,0.00022465,2]
[366465839,1750270240679,-474.23,0.00022465,6]
[366465840,1750270240688,-460.0,0.00022465,6]
[366465841,1750270240698,-420.0,0.00022468,2]
[366465842,1750270240707,-151.0,0.00022547,6]
[366465843,1750270240717,-793.49073526,0.0002259,7]
[366465844,1750270240726,-164.25285832,0.00022639,2]
[366465845,1750270240735,-184.55555556,0.00022681,2]
[366465846,1750270240744,-588306.32652887,0.000227,2]
[366465847,1750270240760,-2833.78708917,0.000227,2]
[366465848,1750270240858,-460.0,0.000227,2]
[366465866,1750270242964,-460.0,0.00021917,6]
[366465867,1750270242975,-460.0,0.00021917,6]
[366465868,1750270242986,-460.0,0.00022191,6]
[366465869,1750270242997,-979.36786157,0.000227,2]
[366465880,1750270307960,205.18,0.00018904,2]
[366465882,1750270387938,202.57,0.00018702,2]
[366465884,1750270403825,156.0,0.00025186,120]
[366465885,1750270469344,217.27,0.00018697,2]
[366465886,1750270548237,239.46,0.00018909,2]
[366465888,1750270627988,236.41,0.00018699,2]
[366465889,1750270709011,358.76,0.0001893,2]
[366465890,1750270790208,354.19,0.00018716,2]
[366465891,1750270871919,349.69,0.00018908,2]
[366465892,1750270929791,280.82,0.00019,30]
[366465893,1750270952616,345.23,0.00018694,2]
[366465894,1750270965985,300.0,0.00022,30]
[366465895,1750271032357,340.84,0.00018695,2]
[366465896,1750271111126,336.5,0.00018693,2]
[366465900,1750271159141,-549.15918681,0.00019584,2]
[366465913,1750271190002,325.23,0.00018694,2]
[366465914,1750271218222,-159.77149774,0.00019484,2]
[366465915,1750271229094,-41.60124014,0.00019484,2]
[366465916,1750271229290,-142.17006078,0.00019584,2]
[366465917,1750271230123,-508.28993922,0.00019584,2]
[366465918,1750271230147,-305.207445,0.00019867,2]
[366465919,1750271230171,-975.69,0.00020474,2]
[366465920,1750271230194,-826.99760811,0.000206,2]
[366465921,1750271230217,-771.16848024,0.00020649,2]
[366465922,1750271234083,-228.83151976,0.00020649,2]
[366465923,1750271234105,-199.37418963,0.00020808,2]
[366465924,1750271269381,355.15,0.00018639,2]
[366465925,1750271273719,4854.46463826,0.00018,2]
[366465930,1750271309960,12693.73057871,0.00019,2]
[366465931,1750271319686,23301.70331313,0.00023,30]
[366465937,1750271346140,-6935.46,0.00019861,2]
[366465938,1750271357358,372.43,0.0001863,2]
[366465939,1750271360110,-744.86,0.00019517,2]
[366465940,1750271360132,-154.7469718,0.00019861,2]
[366465941,1750271360154,-300.0,0.00019999,2]
[366465942,1750271360178,-43.6994282,0.0002,2]
[366465943,1750271366121,-1778.91841456,0.0002,2]
[366465944,1750271397556,230.825461,0.00013699,2]
[366465974,1750271432012,-239.07107684,0.000199,2]
[366465975,1750271432022,-300.0,0.00019999,2]
[366465977,1750271432032,-300.0,0.00019999,2]
[366465978,1750271432042,-1200.0,0.00019999,2]
[366465979,1750271432052,-300.0,0.00019999,2]
[366465980,1750271432061,-27622.95378316,0.0002,2]
[366465982,1750271432071,-2686.56537832,0.0002,2]
[366465983,1750271432081,-1130.65099686,0.0002,2]
[366465985,1750271432090,-230.825461,0.00020187,2]
[366465986,1750271432099,-239.0710768,0.00020642,2]
[366465987,1750271432109,-1000.0,0.00020649,2]
[366465988,1750271432118,-1.85256037,0.00020808,2]
[366465989,1750271432127,-1028.24398883,0.000209,4]
[366465990,1750271432136,-551.33173874,0.000209,2]
[366465992,1750271432146,-300.0,0.00020911,2]
[366465994,1750271432155,-177.428,0.00020914,2]
[366465996,1750271432165,-10416.79350537,0.00020914,2]
[366466000,1750271432199,-14483.20649463,0.00020914,2]
[366466002,1750271432209,-1028.24398876,0.00021072,4]
[366466005,1750271432219,-1028.24398876,0.00021245,4]
[366466008,1750271432228,-1489.73,0.00021291,2]
[366466011,1750271432238,-239.0710768,0.00021383,2]
[366466014,1750271432247,-1028.24398876,0.00021417,5]
[366466016,1750271432258,-1028.24398876,0.0002159,5]
[366466018,1750271432267,-262.0,0.00021758,2]
[366466020,1750271432277,-1028.24398876,0.00021762,5]
[366466022,1750271432287,-420.0,0.00021777,2]
[366466024,1750271432296,-340.0,0.00021777,2]
[366466026,1750271432305,-421.58463103,0.00021813,2]
[366466028,1750271432315,-1200.0,0.00021881,2]
[366466031,1750271432325,-439.26,0.00021907,3]
[366466034,1750271432335,-292.28,0.00021907,10]
[366466036,1750271432344,-290.32813888,0.00021916,2]
[366466038,1750271432354,-460.0,0.00021917,6]
[366466040,1750271432364,-460.0,0.00021917,6]
[366466042,1750271432374,-430.0,0.00021917,6]
[366466044,1750271432383,-460.0,0.00021917,6]
[366466046,1750271432394,-460.0,0.00021917,6]
[366466048,1750271432404,-560.99225664,0.00021917,6]
[366466050,1750271432414,-485.37,0.00021917,6]
[366466052,1750271432423,-420.0,0.00021917,6]
[366466054,1750271432434,-460.0,0.00021917,6]
[366466056,1750271432445,-460.0,0.00021917,6]
[366466058,1750271432454,-430.0,0.00021917,6]
[366466060,1750271432464,-430.0,0.00021917,6]
[366466061,1750271432473,-430.0,0.00021917,6]
[366466062,1750271432482,-460.0,0.00021917,6]
[366466063,1750271432491,-430.0,0.00021917,6]
[366466064,1750271432501,-430.0,0.00021917,6]
[366466065,1750271432511,-400.0,0.00021917,6]
[366466066,1750271432522,-460.0,0.00021917,6]
[366466067,1750271432531,-460.0,0.00021917,6]
[366466068,1750271432541,-430.0,0.00021917,6]
[366466069,1750271432550,-430.0,0.00021917,6]
[366466070,1750271432560,-560.65704578,0.00021917,6]
[366466071,1750271432570,-430.0,0.00021917,6]
[366466072,1750271432580,-460.0,0.00021917,6]
[366466073,1750271432590,-460.0,0.00021917,6]
[366466074,1750271432600,-460.0,0.00021917,6]
[366466075,1750271432609,-460.0,0.00021917,6]
[366466076,1750271432619,-410.0,0.00021917,6]
[366466077,1750271432629,-460.0,0.00021917,6]
[366466078,1750271432639,-430.0,0.00021917,6]
[366466079,1750271432648,-300.35221266,0.00021917,6]
[366466080,1750271432658,-430.0,0.00021917,6]
[366466081,1750271432668,-460.0,0.00021917,6]
[366466082,1750271432678,-460.0,0.00021917,6]
[366466083,1750271432688,-460.0,0.00021917,6]
[366466084,1750271432698,-460.0,0.00021917,6]
[366466085,1750271432708,-430.0,0.00021917,6]
[366466086,1750271432718,-460.0,0.00021917,6]
[366466087,1750271432727,-460.0,0.00021917,6]
[366466088,1750271432737,-331.78230289,0.00021917,6]
[366466089,1750271432746,-380.0,0.00021917,6]
[366466090,1750271432756,-460.0,0.00021917,6]
[366466091,1750271432765,-460.0,0.00021917,6]
[366466092,1750271432774,-430.0,0.00021917,6]
[366466093,1750271432784,-460.0,0.00021917,6]
[366466094,1750271432794,-420.0,0.00021917,6]
[366466095,1750271432803,-460.0,0.00021917,6]
[366466096,1750271432812,-460.0,0.00021917,6]
[366466097,1750271432822,-460.0,0.00021917,6]
[366466098,1750271432832,-460.0,0.00021917,6]
[366466099,1750271432842,-460.0,0.00021917,6]
[366466100,1750271432852,-460.0,0.00021917,6]
[366466101,1750271432862,-460.0,0.00021917,6]
[366466102,1750271432872,-460.0,0.00021917,6]
[366466103,1750271432882,-460.0,0.00021917,6]
[366466104,1750271432891,-460.0,0.00021917,6]
[366466105,1750271432901,-306.45295313,0.00021917,6]
[366466106,1750271432910,-460.0,0.00021917,6]
[366466107,1750271432919,-430.0,0.00021917,6]
[366466108,1750271432930,-460.0,0.00021917,6]
[366466109,1750271432941,-460.0,0.00021917,6]
[366466110,1750271432951,-460.0,0.00021917,6]
[366466111,1750271432960,-460.0,0.00021917,6]
[366466112,1750271432970,-460.0,0.00021917,6]
[366466113,1750271432981,-460.0,0.00021917,6]
[366466114,1750271432991,-460.0,0.00021917,6]
[366466115,1750271433000,-533.64831665,0.00021917,6]
[366466116,1750271433011,-361.02,0.00021917,6]
[366466117,1750271433021,-460.0,0.00021917,6]
[366466118,1750271433031,-460.0,0.00021917,6]
[366466119,1750271433041,-460.0,0.00021917,6]
[366466120,1750271433051,-460.0,0.00021917,6]
[366466121,1750271433061,-460.0,0.00021917,6]
[366466122,1750271433071,-544.27702621,0.00021917,6]
[366466123,1750271433081,-460.0,0.00021917,6]
[366466124,1750271433091,-460.0,0.00021917,6]
[366466125,1750271433101,-202.50642953,0.00021917,6]
[366466126,1750271433112,-340.10536947,0.00021917,6]
[366466127,1750271433122,-460.0,0.00021917,6]
[366466128,1750271433132,-517.36,0.00021917,6]
[366466129,1750271433143,-290.0,0.00021917,6]
[366466130,1750271433153,-460.0,0.00021917,6]
[366466131,1750271433162,-460.0,0.00021917,6]
[366466132,1750271433175,-460.0,0.00021917,6]
[366466133,1750271433185,-460.0,0.00021917,6]
[366466134,1750271433195,-460.0,0.00021917,6]
[366466135,1750271433205,-460.0,0.00021917,6]
[366466136,1750271433216,-460.0,0.00021917,6]
[366466137,1750271433226,-460.0,0.00021917,6]
[366466138,1750271433236,-460.0,0.00021917,6]
[366466139,1750271433246,-440.0,0.00021917,6]
[366466140,1750271433256,-510.0,0.00021917,6]
[366466141,1750271433268,-460.0,0.00021917,6]
[366466142,1750271433278,-460.0,0.00021917,6]
[366466143,1750271433292,-460.0,0.00021917,6]
[366466144,1750271433301,-460.0,0.00021917,6]
[366466145,1750271433312,-460.0,0.00021917,6]
[366466146,1750271433321,-2364.1,0.00021917,6]
[366466147,1750271433331,-1022.46,0.00021917,6]
[366466148,1750271433340,-460.0,0.00021917,6]
[366466149,1750271433350,-460.0,0.00021917,6]
[366466150,1750271433359,-1393.99,0.00021917,6]
[366466151,1750271433369,-460.0,0.00021917,6]
[366466152,1750271433378,-460.0,0.00021917,6]
[366466153,1750271433388,-460.0,0.00021917,6]
[366466154,1750271433397,-460.0,0.00021917,6]
[366466155,1750271433407,-460.0,0.00021917,6]
[366466156,1750271433417,-460.0,0.00021917,6]
[366466157,1750271433426,-460.0,0.00021917,6]
[366466158,1750271433436,-2019.59,0.00021917,6]
[366466159,1750271433446,-460.0,0.00021917,6]
[366466160,1750271433456,-707.36,0.00021917,6]
[366466161,1750271433465,-460.0,0.00021917,6]
[366466162,1750271433475,-460.0,0.00021917,6]
[366466163,1750271433485,-460.0,0.00021917,6]
[366466164,1750271433494,-2323.67,0.00021917,6]
[366466165,1750271433504,-642.78,0.00021917,6]
[366466166,1750271433513,-2114.72,0.00021917,6]
[366466167,1750271433523,-460.0,0.00021917,6]
[366466168,1750271433533,-460.0,0.00021917,6]
[366466169,1750271433543,-460.0,0.00021917,6]
[366466170,1750271433553,-534.96,0.00021917,6]
[366466171,1750271433563,-412.29442468,0.00021917,6]
[366466172,1750271433573,-310.0,0.00021917,6]
[366466173,1750271433583,-835.71,0.00021917,6]
[366466174,1750271433592,-460.0,0.00021917,6]
[366466175,1750271433602,-460.0,0.00021917,6]
[366466176,1750271433612,-460.0,0.00021917,6]
[366466177,1750271433624,-460.0,0.00021917,6]
[366466178,1750271433633,-460.0,0.00021917,6]
[366466179,1750271433643,-460.0,0.00021917,6]
[366466180,1750271433653,-430.0,0.00021917,6]
[366466181,1750271433662,-460.0,0.00021917,6]
[366466182,1750271433672,-1091.54,0.00021917,6]
[366466183,1750271433682,-460.0,0.00021917,6]
[366466184,1750271433692,-460.0,0.00021917,6]
[366466185,1750271433702,-843.4,0.00021917,6]
[366466186,1750271433712,-460.0,0.00021917,6]
[366466187,1750271433723,-460.0,0.00021917,6]
[366466188,1750271433732,-460.0,0.00021917,6]
[366466189,1750271433742,-460.0,0.00021917,6]
[366466190,1750271433752,-460.0,0.00021917,6]
[366466191,1750271433761,-460.0,0.00021917,6]
[366466192,1750271433771,-460.0,0.00021917,6]
[366466193,1750271433781,-460.0,0.00021917,6]
[366466194,1750271433791,-460.0,0.00021917,6]
[366466195,1750271433800,-460.0,0.00021917,6]
[366466196,1750271433809,-535.64058528,0.00021917,6]
[366466197,1750271433819,-460.0,0.00021917,6]
[366466198,1750271433829,-1369.54,0.00021917,6]
[366466199,1750271433838,-460.0,0.00021917,6]
[366466200,1750271433848,-647.63,0.00021917,6]
[366466201,1750271433857,-460.0,0.00021917,6]
[366466202,1750271433867,-460.0,0.00021917,6]
[366466203,1750271433877,-460.0,0.00021917,6]
[366466204,1750271433886,-460.0,0.00021917,6]
[366466205,1750271433896,-460.0,0.00021917,6]
[366466206,1750271433906,-198.16197052,0.00021917,6]
[366466207,1750271433915,-460.0,0.00021917,6]
[366466208,1750271433925,-460.0,0.00021917,6]
[366466209,1750271433938,-460.0,0.00021917,6]
[366466210,1750271433948,-460.0,0.00021917,6]
[366466211,1750271433958,-350.0,0.00021917,6]
[366466212,1750271433967,-460.0,0.00021917,6]
[366466213,1750271433979,-460.0,0.00021917,6]
[366466214,1750271433988,-460.0,0.00021917,6]
[366466215,1750271433997,-460.0,0.00021917,6]
[366466216,1750271434007,-460.0,0.00021917,6]
[366466217,1750271434018,-460.0,0.00021917,6]
[366466218,1750271434027,-460.0,0.00021917,6]
[366466219,1750271434037,-592.93184677,0.00021917,6]
[366466220,1750271434047,-783.74,0.00021917,6]
[366466221,1750271434056,-460.0,0.00021917,6]
[366466222,1750271434066,-460.0,0.00021917,6]
[366466223,1750271434076,-1009.55,0.00021917,6]
[366466224,1750271434086,-733.9,0.00021917,6]
[366466225,1750271434095,-460.0,0.00021917,6]
[366466226,1750271434113,-460.0,0.00021917,6]
[366466227,1750271434126,-460.0,0.00021917,6]
[366466228,1750271434136,-430.0,0.00021917,6]
[366466229,1750271434146,-460.0,0.00021917,6]
[366466230,1750271434155,-460.0,0.00021917,6]
[366466231,1750271434165,-460.0,0.00021917,6]
[366466232,1750271434175,-460.0,0.00021917,6]
[366466233,1750271434185,-1891.33,0.00021917,6]
[366466234,1750271434195,-460.0,0.00021917,6]
[366466235,1750271434205,-460.0,0.00021917,6]
[366466236,1750271434215,-460.0,0.00021917,6]
[366466237,1750271434226,-460.0,0.00021917,6]
[366466238,1750271434235,-460.0,0.00021917,6]
[366466239,1750271434246,-460.0,0.00021917,6]
[366466240,1750271434256,-460.0,0.00021917,6]
[366466241,1750271434266,-460.0,0.00021917,6]
[366466242,1750271434276,-513.7,0.00021917,6]
[366466243,1750271434285,-460.0,0.00021917,6]
[366466244,1750271434295,-460.0,0.00021917,6]
[366466245,1750271434306,-3886.21,0.00021917,6]
[366466246,1750271434317,-460.0,0.00021917,6]
[366466247,1750271434327,-320.0,0.00021917,6]
[366466248,1750271434339,-360.0,0.00021917,6]
[366466249,1750271434348,-460.0,0.00021917,6]
[366466250,1750271434358,-460.0,0.00021917,6]
[366466251,1750271434367,-460.0,0.00021917,6]
[366466252,1750271434377,-460.0,0.00021917,2]
[366466253,1750271434386,-460.0,0.00021917,6]
[366466254,1750271434396,-1982.07,0.00021917,6]
[366466255,1750271434406,-460.0,0.00021917,6]
[366466256,1750271434415,-1028.24398876,0.00021934,6]
[366466257,1750271434425,-500.0,0.00021973,2]
[366466258,1750271434435,-243.36945646,0.00021973,2]
[366466259,1750271434444,-500.0,0.00021973,2]
[366466260,1750271434454,-500.0,0.00021973,2]
[366466261,1750271434463,-500.0,0.00021973,2]
[366466262,1750271434473,-500.0,0.00021973,2]
[366466263,1750271434483,-536.3578684,0.00021973,2]
[366466264,1750271434493,-421.58463103,0.00021975,2]
[366466265,1750271434503,-158.0,0.00022,2]
[366466266,1750271434512,-1028.24398876,0.00022107,6]
[366466267,1750271434522,-194.73620067,0.00022107,2]
[366466268,1750271434532,-239.0710768,0.00022125,2]
[366466269,1750271434545,-1862.16,0.00022178,2]
[366466270,1750271434555,-160.0,0.0002219,2]
[366466271,1750271434565,-339.6697,0.00022191,6]
[366466272,1750271434575,-306.93803834,0.00022191,6]
[366466273,1750271434586,-438.36313275,0.00022191,6]
[366466274,1750271434596,-460.0,0.00022191,6]
[366466275,1750271434606,-460.0,0.00022191,6]
[366466276,1750271434616,-390.0,0.00022191,6]
[366466277,1750271434625,-460.0,0.00022191,6]
[366466278,1750271434636,-460.0,0.00022191,6]
[366466279,1750271434645,-460.0,0.00022191,6]
[366466280,1750271434655,-460.0,0.00022191,6]
[366466281,1750271434665,-460.0,0.00022191,6]
[366466282,1750271434675,-460.0,0.00022191,6]
[366466283,1750271434685,-390.0,0.00022191,6]
[366466284,1750271434695,-460.0,0.00022191,6]
[366466285,1750271434705,-460.0,0.00022191,6]
[366466286,1750271434715,-400.0,0.00022191,6]
[366466287,1750271434724,-460.0,0.00022191,6]
[366466288,1750271434734,-460.0,0.00022191,6]
[366466289,1750271434743,-460.0,0.00022191,6]
[366466290,1750271434753,-250.0,0.00022191,6]
[366466291,1750271434763,-26.46136595,0.00022191,6]
[366466292,1750271434893,-433.53863405,0.00022191,6]
[366466293,1750271434903,-460.0,0.00022191,6]
[366466294,1750271434912,-440.0,0.00022191,6]
[366466295,1750271434922,-460.0,0.00022191,6]
[366466296,1750271434936,-460.0,0.00022191,6]
[366466297,1750271434946,-460.0,0.00022191,6]
[366466298,1750271434956,-460.0,0.00022191,6]
[366466299,1750271434965,-460.0,0.00022191,6]
[366466300,1750271434976,-460.0,0.00022191,6]
[366466301,1750271435138,-460.0,0.00022191,6]
[366466302,1750271435148,-517.36,0.00022191,6]
[366466303,1750271435157,-460.0,0.00022191,6]
[366466304,1750271435167,-460.0,0.00022191,6]
[366466305,1750271435176,-480.0,0.00022191,6]
[366466306,1750271435185,-420.0,0.00022191,6]
[366466307,1750271435196,-460.0,0.00022191,6]
[366466308,1750271435205,-246.41081921,0.00022191,6]
[366466309,1750271435215,-460.0,0.00022191,6]
[366466310,1750271435224,-460.0,0.00022191,6]
[366466311,1750271435234,-460.0,0.00022191,6]
[366466312,1750271435244,-340.0,0.00022191,6]
[366466313,1750271435253,-460.0,0.00022191,6]
[366466314,1750271435263,-460.0,0.00022191,6]
[366466315,1750271435273,-2364.1,0.00022191,6]
[366466316,1750271435282,-1022.46,0.00022191,6]
[366466317,1750271435291,-460.0,0.00022191,6]
[366466318,1750271435301,-460.0,0.00022191,6]
[366466319,1750271435310,-1393.99,0.00022191,6]
[366466320,1750271435320,-460.0,0.00022191,6]
[366466321,1750271435329,-460.0,0.00022191,6]
[366466322,1750271435338,-460.0,0.00022191,6]
[366466323,1750271435348,-460.0,0.00022191,6]
[366466324,1750271435358,-460.0,0.00022191,6]
[366466325,1750271435367,-460.0,0.00022191,6]
[366466326,1750271435376,-1673.75220795,0.00022191,6]
[366466394,1750271446090,-500.0,0.00019999,2]
[366466395,1750271446099,-500.0,0.00019999,2]
[366466396,1750271446109,-500.0,0.00019999,2]
[366466397,1750271446118,-420.0,0.00019999,2]
[366466398,1750271446127,-483.30135678,0.00019999,2]
[366466399,1750271446137,-358.21,0.00020069,2]
[366466400,1750271446146,-716.42,0.00021024,2]
[366466401,1750271446155,-250.0,0.00021852,2]
[366466402,1750271446164,-243.57,0.00021907,10]
[366466403,1750271446173,-14464.14766904,0.00021917,2]
[366466404,1750271446182,-460.0,0.00021917,6]
[366466405,1750271446192,-460.0,0.00021917,6]
[366466406,1750271446201,-460.0,0.00021917,6]
[366466407,1750271446212,-460.0,0.00021917,6]
[366466408,1750271446221,-224.35342929,0.00021917,6]
[366466409,1750271446230,-460.0,0.00021917,6]
[366466410,1750271446240,-460.0,0.00021917,6]
[366466411,1750271446249,-460.0,0.00021917,6]
[366466412,1750271446258,-1074.63,0.0002198,2]
[366466413,1750271446268,-345.83779205,0.00022191,6]
[366466414,1750271446277,-460.0,0.00022191,6]
[366466415,1750271446286,-707.36,0.00022191,6]
[366466416,1750271446295,-460.0,0.00022191,6]
[366466417,1750271446304,-2323.67,0.00022191,6]
[366466418,1750271446313,-642.78,0.00022191,6]
[366466419,1750271446323,-2114.72,0.00022191,6]
[366466420,1750271446332,-460.0,0.00022191,6]
[366466421,1750271446341,-460.0,0.00022191,6]
[366466422,1750271446350,-460.0,0.00022191,6]
[366466423,1750271446360,-534.96,0.00022191,6]
[366466424,1750271446369,-835.71,0.00022191,6]
[366466425,1750271446378,-460.0,0.00022191,6]
[366466426,1750271446387,-460.0,0.00022191,6]
[366466427,1750271446396,-460.0,0.00022191,6]
[366466428,1750271446406,-460.0,0.00022191,6]
[366466429,1750271446415,-460.0,0.00022191,6]
[366466430,1750271446425,-1091.54,0.00022191,6]
[366466431,1750271446434,-460.0,0.00022191,6]
[366466432,1750271446443,-460.0,0.00022191,6]
[366466433,1750271446452,-843.4,0.00022191,6]
[366466434,1750271446463,-460.0,0.00022191,6]
[366466435,1750271446471,-230.0,0.00022191,6]
[366466436,1750271446481,-460.0,0.00022191,6]
[366466437,1750271446490,-460.0,0.00022191,6]
[366466438,1750271446499,-460.0,0.00022191,6]
[366466439,1750271446508,-460.0,0.00022191,6]
[366466440,1750271446518,-460.0,0.00022191,6]
[366466441,1750271446528,-460.0,0.00022191,6]
[366466442,1750271446537,-460.0,0.00022191,6]
[366466443,1750271446546,-460.0,0.00022191,6]
[366466444,1750271446556,-460.0,0.00022191,6]
[366466445,1750271446565,-1369.54,0.00022191,6]
[366466446,1750271446575,-460.0,0.00022191,6]
[366466447,1750271446584,-647.63,0.00022191,6]
[366466448,1750271446593,-460.0,0.00022191,6]
[366466449,1750271446603,-460.0,0.00022191,6]
[366466450,1750271446612,-460.0,0.00022191,6]